bitfinex/quotes_BTCUSD_20241024
["timestamp","ask_amount","ask_price","bid_price","bid_amount"]
[1729803285584,0.146582,68221.0,68220.0,0.00424535]
[1729803297259,0.147408,68221.0,68220.0,0.00424535]
[1729803300396,0.000826,68221.0,68220.0,0.00424535]
[1729803300599,0.000826,68221.0,68220.0,0.74332778]
[1729803300832,0.000826,68221.0,68220.0,0.85824791]
[1729803301054,0.000826,68221.0,68220.0,0.86070901]
[1729803301262,0.000826,68221.0,68220.0,0.76596532]
[1729803302651,0.000826,68221.0,68220.0,0.60375193]
[1729803302861,0.000826,68221.0,68220.0,0.76574742]
[1729803304445,0.000826,68221.0,68220.0,0.87535315]
[1729803305005,0.000826,68221.0,68220.0,0.76574742]
[1729803305245,0.000826,68221.0,68220.0,0.87720153]
[1729803305465,0.000826,68221.0,68220.0,0.76559412]
[1729803305677,0.000826,68221.0,68220.0,0.76759412]
[1729803306582,0.000826,68221.0,68220.0,0.76559412]
[1729803306920,0.000826,68221.0,68220.0,0.8532316]
[1729803307136,0.000826,68221.0,68220.0,0.76559412]
[1729803307335,0.000826,68221.0,68220.0,0.76549927]
[1729803307539,0.000826,68221.0,68220.0,0.85312145]
[1729803309689,0.000826,68221.0,68220.0,0.76549927]
[1729803309897,0.000826,68221.0,68220.0,0.76749927]
[1729803310121,0.000826,68221.0,68220.0,0.85512145]
[1729803310552,0.000826,68221.0,68220.0,0.76749927]
[1729803311846,0.000826,68221.0,68220.0,0.76549927]
[1729803312052,0.000826,68221.0,68220.0,0.72862438]
[1729803312270,0.000826,68221.0,68220.0,0.72862371]
[1729803312478,0.000826,68221.0,68220.0,0.56703297]
[1729803312706,0.000826,68221.0,68220.0,0.72860619]
[1729803312927,0.000826,68221.0,68220.0,0.5013707]
[1729803313365,0.000826,68221.0,68220.0,0.4913707]
[1729803313593,0.000826,68221.0,68220.0,0.5013707]
[1729803314686,0.000826,68221.0,68220.0,0.54513621]
[1729803316804,0.000826,68221.0,68220.0,0.5013707]
[1729803317019,0.000826,68221.0,68220.0,0.53513291]
[1729803317232,0.000826,68221.0,68220.0,0.5013707]
[1729803321337,0.000826,68221.0,68220.0,0.54509078]
[1729803321809,0.000826,68221.0,68220.0,0.83214515]
[1729803322017,0.000826,68221.0,68220.0,0.93414515]
[1729803322280,0.000826,68221.0,68220.0,0.89009746]
[1729803325918,0.000826,68221.0,68220.0,0.88809746]
[1729803326381,0.000826,68221.0,68220.0,0.89009746]
[1729803326583,0.000826,68221.0,68220.0,0.99932774]
[1729803327429,0.000826,68221.0,68220.0,0.99932337]
[1729803327863,0.000826,68221.0,68220.0,0.99932337]
[1729803331521,0.000826,68221.0,68220.0,0.99732337]
[1729803331719,0.000826,68221.0,68220.0,0.88809746]
[1729803332143,0.000826,68221.0,68220.0,0.97548341]
[1729803333271,0.000826,68221.0,68220.0,0.97748341]
[1729803333488,0.000826,68221.0,68220.0,0.89009746]
[1729803333713,0.000826,68221.0,68220.0,0.97752389]
[1729803333714,0.00060426,68221.0,68220.0,0.97752389]
[1729803334156,0.00060426,68221.0,68220.0,0.9775303]
[1729803334374,0.00060426,68221.0,68220.0,0.89009746]
[1729803335466,0.00060426,68221.0,68220.0,0.99932337]
[1729803338014,0.00060426,68221.0,68220.0,0.87378271]
[1729803338363,0.00060426,68221.0,68220.0,0.78629746]
[1729803339460,0.00060426,68221.0,68220.0,0.87378271]
[1729803340371,0.00060426,68221.0,68220.0,0.78629746]
[1729803340773,0.00060426,68221.0,68220.0,0.78654633]
[1729803341387,0.00060426,68221.0,68220.0,0.874098]
[1729803342217,0.00060426,68221.0,68220.0,0.4805651]
[1729803342428,0.00060426,68221.0,68220.0,0.4905651]
[1729803342633,0.00060426,68221.0,68220.0,0.4805651]
[1729803342831,0.00060426,68221.0,68220.0,0.4905651]
[1729803343469,0.00060426,68221.0,68220.0,0.57811677]
[1729803343645,0.00060426,68221.0,68220.0,0.56811677]
[1729803344113,0.00060426,68221.0,68220.0,0.56311677]
[1729803344337,0.00060426,68221.0,68220.0,0.56811677]
[1729803344546,0.00060426,68221.0,68220.0,0.4755651]
[1729803344746,0.00060426,68221.0,68220.0,0.56821785]
[1729803345389,0.00060426,68221.0,68220.0,0.4805651]
[1729803345580,0.00060426,68221.0,68220.0,0.4808566]
[1729803346260,0.00060426,68221.0,68220.0,0.56857158]
[1729803346965,0.00060426,68221.0,68220.0,0.56357158]
[1729803347439,0.09780426,68221.0,68220.0,0.00424535]
[1729803347886,0.00060426,68221.0,68220.0,0.30926473]
[1729803348106,0.00060426,68221.0,68220.0,0.35520478]
[1729803348415,0.00060426,68221.0,68220.0,0.62998888]
[1729803348642,0.00060426,68221.0,68220.0,0.6534948]
[1729803348859,0.00060426,68221.0,68220.0,0.76308818]
[1729803349330,0.00060426,68221.0,68220.0,0.6534948]
[1729803350234,0.00060426,68221.0,68220.0,0.65344872]
[1729803350855,0.00060426,68221.0,68220.0,0.66122039]
[1729803351939,0.00060426,68221.0,68220.0,0.65622039]
[1729803352168,0.00060426,68221.0,68220.0,0.66122039]
[1729803353495,0.00060426,68221.0,68220.0,0.77074763]
[1729803353706,0.00060426,68221.0,68220.0,0.66122039]
[1729803353928,0.00060426,68221.0,68220.0,0.77073589]
[1729803354148,0.00060426,68221.0,68220.0,0.66122039]
[1729803354361,0.00060426,68221.0,68220.0,0.77073589]
[1729803354749,0.00060426,68221.0,68220.0,0.66122039]
[1729803354920,0.00060426,68221.0,68220.0,0.66114128]
[1729803355294,0.00060426,68221.0,68220.0,0.77067708]
[1729803355506,0.00060426,68221.0,68220.0,0.66114128]
[1729803356201,0.00060426,68221.0,68220.0,0.77067708]
[1729803356607,0.00060426,68221.0,68220.0,0.66114128]
[1729803356815,0.00060426,68221.0,68220.0,0.60037708]
[1729803357023,0.00060426,68221.0,68220.0,0.49084128]
[1729803357892,0.00060426,68221.0,68220.0,0.57847043]
[1729803358101,0.00060426,68221.0,68220.0,0.55656956]
[1729803358344,0.00060426,68221.0,68220.0,0.49084128]
[1729803358546,0.00060426,68221.0,68220.0,0.54656853]
[1729803358750,0.00060426,68221.0,68220.0,0.39483208]
[1729803359183,0.00060426,68221.0,68220.0,0.32910483]
[1729803359630,0.00060426,68221.0,68220.0,0.31410483]
[1729803359858,0.00060426,68221.0,68220.0,0.35792239]
[1729803360078,0.00060426,68221.0,68220.0,0.31410483]
[1729803360294,0.00060426,68221.0,68220.0,0.35792234]
[1729803360726,0.18090426,68221.0,68220.0,0.30633316]
[1729803363213,0.18090426,68221.0,68220.0,0.15582935]
[1729803363918,0.18090426,68221.0,68220.0,0.00424535]
[1729803364370,0.18090426,68221.0,68220.0,0.00924535]
[1729803364571,0.18090426,68221.0,68220.0,0.15582935]
[1729803365028,0.28328549,68221.0,68220.0,0.00424535]
[1729803365254,0.28328549,68221.0,68220.0,0.00924535]
[1729803365711,0.28328549,68221.0,68220.0,0.00424535]
[1729803366804,0.28328549,68221.0,68220.0,0.00924535]
[1729803367241,0.18090426,68221.0,68220.0,0.00924535]
[1729803367892,0.32748626,68221.0,68220.0,0.00924535]
[1729803368569,0.18090426,68221.0,68220.0,0.00924535]
[1729803370047,0.09990426,68221.0,68220.0,0.00924535]
[1729803370255,0.00060426,68221.0,68220.0,1.00924535]
[1729803370479,0.14353618,68222.0,68221.0,0.00259335]
[1729803371834,0.10238123,68222.0,68220.0,1.001652]
[1729803372056,0.146582,68221.0,68220.0,1.001652]
[1729803372275,0.39949246,68221.0,68220.0,1.001652]
[1729803374225,0.40649246,68221.0,68220.0,1.001652]
[1729803375332,0.40449246,68221.0,68220.0,1.001652]
[1729803375545,0.50687369,68221.0,68220.0,1.001652]
[1729803376194,0.50446704,68221.0,68220.0,1.001652]
[1729803376421,0.246582,68221.0,68220.0,1.001652]
[1729803378202,0.1,68222.0,68220.0,1.00424535]
[1729803378417,0.100826,68224.0,68220.0,1.00424535]
[1729803378652,0.246581,68222.0,68221.0,0.00259335]
[1729803381984,0.34978823,68222.0,68221.0,0.00259335]
[1729803385118,0.146582,68221.0,68220.0,1.001652]
[1729803385344,0.246582,68221.0,68220.0,1.001652]
[1729803390672,0.34896323,68221.0,68220.0,1.001652]
[1729803399373,0.50687369,68221.0,68220.0,1.001652]
[1729803399591,0.40449246,68221.0,68220.0,1.001652]
[1729803399817,0.40649246,68221.0,68220.0,1.001652]
[1729803400256,0.40449246,68221.0,68220.0,1.001652]
[1729803400710,0.40649246,68221.0,68220.0,1.001652]
[1729803401406,0.40449246,68221.0,68220.0,1.001652]
[1729803401874,0.40649246,68221.0,68220.0,1.001652]
[1729803402975,0.40449246,68221.0,68220.0,1.001652]
[1729803404041,0.41209997,68221.0,68220.0,1.001652]
[1729803404898,0.41409997,68221.0,68220.0,1.001652]
[1729803405335,0.41209997,68221.0,68220.0,1.001652]
[1729803407523,0.41409997,68221.0,68220.0,1.001652]
[1729803408238,0.58760378,68221.0,68220.0,1.001652]
[1729803408455,0.6314373,68221.0,68220.0,1.001652]
[1729803408899,0.43709997,68221.0,68220.0,1.001652]
[1729803409115,0.50285025,68221.0,68220.0,1.001652]
[1729803409818,0.48073633,68221.0,68220.0,1.001652]
[1729803410082,0.52511997,68221.0,68220.0,0.22812408]
[1729803410295,0.67562378,68221.0,68220.0,0.1693247]
[1729803411194,0.67562378,68221.0,68220.0,0.1587419]
[1729803412532,0.67562378,68221.0,68218.0,0.001652]
[1729803412533,0.57177511,68219.0,68218.0,0.001652]
[1729803412745,0.93861698,68219.0,68218.0,0.001652]
[1729803413206,0.03240665,68211.0,68183.0,0.293327]
[1729803413416,0.63427592,68211.0,68188.0,0.146652]
[1729803413873,0.63427592,68211.0,68186.0,0.51350233]
[1729803414055,0.63427592,68211.0,68189.0,0.14665]
[1729803414319,0.63647537,68211.0,68189.0,0.14665]
[1729803414746,0.63647537,68211.0,68188.0,0.146653]
[1729803414953,0.78697918,68211.0,68188.0,0.146653]
[1729803415204,0.78697918,68211.0,68189.0,0.00759335]
[1729803415426,0.78697918,68211.0,68188.0,0.00759335]
[1729803415652,0.78697918,68211.0,68186.0,0.22778168]
[1729803415653,0.45379411,68201.0,68186.0,0.22778168]
[1729803415854,0.60429792,68201.0,68186.0,0.22778168]
[1729803416318,0.14664,68194.0,68186.0,0.22778168]
[1729803416545,0.35140246,68194.0,68186.0,0.22778168]
[1729803416953,0.293293,68191.0,68186.0,0.22778168]
[1729803417168,0.10238123,68187.0,68186.0,0.22778168]
[1729803417840,0.10238123,68187.0,68186.0,0.00759335]
[1729803418513,0.146651,68189.0,68186.0,0.00759335]
[1729803418957,0.146649,68190.0,68186.0,0.00759335]
[1729803419176,0.14665,68190.0,68186.0,0.00759335]
[1729803419406,0.146647,68191.0,68186.0,0.00759335]
[1729803419632,0.146647,68191.0,68186.0,0.15425035]
[1729803420403,0.146652,68189.0,68186.0,0.00759335]
[1729803420640,0.293295,68191.0,68186.0,0.00759335]
[1729803420641,0.146647,68191.0,68186.0,0.00759335]
[1729803422604,0.146652,68189.0,68186.0,0.00759335]
[1729803423453,0.439944,68191.0,68186.0,0.00759335]
[1729803423648,0.146647,68191.0,68186.0,0.00759335]
[1729803429822,0.15050381,68201.0,68185.0,0.146657]
[1729803429823,0.146637,68196.0,68191.0,0.1848]
[1729803430021,0.146634,68197.0,68194.0,0.10238123]
[1729803430233,0.393257,68200.0,68194.0,0.10238123]
[1729803430509,0.146635,68197.0,68194.0,0.10238123]
[1729803430708,0.146632,68198.0,68194.0,0.10238123]
[1729803430915,0.393257,68200.0,68194.0,0.10238123]
[1729803431144,0.146637,68196.0,68191.0,0.19239335]
[1729803431338,0.14883653,68196.0,68191.0,0.19239335]
[1729803432234,0.146638,68195.0,68191.0,0.19239335]
[1729803434665,0.146641,68194.0,68191.0,0.19239335]
[1729803436631,0.146643,68193.0,68191.0,0.19239335]
[1729803437252,0.293276,68195.0,68191.0,0.10529335]
[1729803437550,0.146643,68193.0,68191.0,0.00259335]
[1729803437755,0.146643,68193.0,68191.0,0.00759335]
[1729803437962,0.146644,68192.0,68191.0,0.00759335]
[1729803444642,0.293276,68195.0,68187.0,0.18659335]
[1729803444851,0.146647,68191.0,68187.0,0.18659335]
[1729803447133,0.146644,68193.0,68190.0,0.00759335]
[1729803447604,0.146645,68192.0,68190.0,0.00759335]
[1729803447833,0.146645,68192.0,68191.0,0.005]
[1729803452777,0.146644,68192.0,68191.0,0.005]
[1729803453016,0.146644,68192.0,68191.0,0.005826]
[1729803453454,0.146644,68192.0,68191.0,0.000826]
[1729803453661,0.146644,68192.0,68191.0,0.005826]
[1729803456881,0.146644,68192.0,68191.0,0.108726]
[1729803463212,0.146644,68192.0,68191.0,0.103726]
[1729803463427,0.146644,68192.0,68191.0,0.108726]
[1729803463660,0.293281,68194.0,68191.0,0.108726]
[1729803464656,0.146644,68192.0,68191.0,0.108726]
[1729803467751,0.146644,68192.0,68191.0,0.008726]
[1729803467959,0.146644,68192.0,68191.0,0.005]
[1729803468373,0.29548563,68193.0,68191.0,0.005]
[1729803468582,0.146644,68192.0,68191.0,0.005]
[1729803470200,0.29548563,68193.0,68191.0,0.005]
[1729803470436,0.146644,68192.0,68191.0,0.005]
[1729803474449,0.00219963,68193.0,68191.0,0.005]
[1729803474693,0.439933,68192.0,68191.0,0.005]
[1729803475352,0.439933,68192.0,68191.0,0.005826]
[1729803475556,0.441585,68192.0,68191.0,0.005826]
[1729803475980,0.148296,68192.0,68191.0,0.005826]
[1729803486114,0.148296,68192.0,68191.0,0.000826]
[1729803496301,0.25067723,68192.0,68191.0,0.000826]
[1729803500421,0.148296,68192.0,68191.0,0.000826]
[1729803505560,0.329296,68192.0,68191.0,0.000826]
[1729803513607,0.148296,68192.0,68191.0,0.000826]
[1729803514027,0.25067723,68192.0,68191.0,0.000826]
[1729803530829,0.148296,68192.0,68191.0,0.00341935]
[1729803532154,0.148296,68192.0,68191.0,0.000826]
[1729803533955,0.25067723,68192.0,68191.0,0.000826]
[1729803534811,0.35984661,68192.0,68191.0,0.000826]
[1729803535024,0.25308388,68192.0,68191.0,0.000826]
[1729803535495,0.40201481,68192.0,68191.0,0.000826]
[1729803535710,0.35808388,68192.0,68191.0,0.000826]
[1729803536159,0.40201481,68192.0,68191.0,0.000826]
[1729803537954,0.35808388,68192.0,68191.0,0.000826]
[1729803538165,0.40201481,68192.0,68191.0,0.000826]
[1729803538609,0.25570265,68192.0,68191.0,0.000826]
[1729803540612,0.37563358,68192.0,68191.0,0.000826]
[1729803541052,0.33170265,68192.0,68191.0,0.000826]
[1729803541993,0.25766165,68187.0,68186.0,0.001652]
[1729803542207,0.63257449,68187.0,68186.0,0.001652]
[1729803542432,0.6641553,68187.0,68186.0,0.001652]
[1729803542659,0.59829085,68187.0,68186.0,0.001652]
[1729803545655,0.75664097,68187.0,68186.0,0.001652]
[1729803546065,0.62913716,68187.0,68186.0,0.001652]
[1729803546495,0.63113716,68187.0,68186.0,0.001652]
[1729803546723,0.65410254,68187.0,68186.0,0.001652]
[1729803547159,0.65910254,68187.0,68186.0,0.001652]
[1729803547391,0.72492528,68187.0,68186.0,0.001652]
[1729803547616,0.80960635,68187.0,68186.0,0.001652]
[1729803548546,0.87037607,68187.0,68186.0,0.001652]
[1729803548782,0.87537607,68187.0,68186.0,0.001652]
[1729803549004,0.146683,68174.0,68173.0,0.001652]
[1729803549217,0.252783,68174.0,68173.0,0.001652]
[1729803549636,0.41531885,68174.0,68173.0,0.001652]
[1729803549762,0.51531885,68174.0,68173.0,0.001652]
[1729803550200,0.50569346,68174.0,68173.0,0.001652]
[1729803551067,0.51240731,68174.0,68173.0,0.001652]
[1729803553434,0.66291112,68174.0,68173.0,0.001652]
[1729803553608,0.51240731,68174.0,68173.0,0.001652]
[1729803555461,0.52035831,68174.0,68173.0,0.001652]
[1729803559183,0.40630731,68174.0,68173.0,0.001652]
[1729803560364,0.25339685,68174.0,68173.0,0.077352]
[1729803576219,0.25339685,68174.0,68173.0,0.001652]
[1729803581361,0.15339685,68174.0,68173.0,0.11804535]
[1729803581573,0.15339685,68174.0,68173.0,0.19344535]
[1729803582014,0.15559724,68174.0,68173.0,0.19344535]
[1729803584943,0.15559724,68174.0,68173.0,0.18844535]
[1729803585140,0.15559724,68174.0,68173.0,0.19344535]
[1729803585956,0.00671385,68174.0,68173.0,0.34394916]
[1729803586325,0.15339685,68174.0,68173.0,0.34394916]
[1729803586528,0.01791813,68175.0,68174.0,0.1915]
[1729803586834,0.16459913,68175.0,68174.0,0.1915]
[1729803588393,0.01791813,68175.0,68174.0,0.1915]
[1729803588606,0.16459913,68175.0,68174.0,0.1915]
[1729803590112,0.01791813,68175.0,68174.0,0.1915]
[1729803593745,0.17128456,68175.0,68174.0,0.1915]
[1729803596116,0.02460356,68175.0,68174.0,0.1915]
[1729803596578,0.16459913,68175.0,68174.0,0.1915]
[1729803596759,0.17150427,68175.0,68174.0,0.1915]
[1729803597886,0.02482327,68175.0,68174.0,0.34459716]
[1729803598097,0.02482327,68175.0,68174.0,0.50628016]
[1729803598098,0.01791813,68175.0,68174.0,0.50628016]
[1729803598289,0.01791813,68175.0,68174.0,0.5501981]
[1729803598515,0.01791813,68175.0,68174.0,0.50628016]
[1729803598733,0.01791813,68175.0,68174.0,0.55016951]
[1729803599857,0.01791813,68175.0,68174.0,0.57215707]
[1729803600066,0.01791813,68175.0,68174.0,0.73614137]
[1729803600289,0.01791813,68175.0,68174.0,0.74395702]
[1729803600509,0.01791813,68175.0,68174.0,0.67808011]
[1729803601156,0.01791813,68175.0,68174.0,0.74895694]
[1729803601367,0.01474152,68177.0,68176.0,0.17127235]
[1729803601588,0.01474152,68177.0,68176.0,0.66989325]
[1729803601809,0.00343965,68179.0,68178.0,0.19426735]
[1729803602021,0.00343965,68179.0,68178.0,0.69568791]
[1729803602231,0.00343965,68179.0,68178.0,0.78048116]
[1729803602441,0.00343965,68179.0,68178.0,0.69275546]
[1729803602643,0.00343965,68179.0,68178.0,0.75852165]
[1729803603105,0.00343965,68179.0,68178.0,0.53077116]
[1729803603315,0.00343965,68179.0,68178.0,0.59653735]
[1729803603528,0.00343965,68179.0,68178.0,0.53077116]
[1729803604591,0.00343965,68179.0,68178.0,0.57459102]
[1729803605512,0.00343965,68179.0,68178.0,0.53077116]
[1729803612568,0.00509165,68179.0,68178.0,0.53077116]
[1729803619937,0.00509165,68179.0,68178.0,0.85095949]
[1729803620152,0.00509165,68179.0,68178.0,0.63077116]
[1729803620370,0.00509165,68179.0,68178.0,0.69640789]
[1729803621827,0.00509165,68179.0,68178.0,1.07803707]
[1729803622040,0.00509165,68179.0,68178.0,0.87972765]
[1729803622447,0.00509165,68179.0,68178.0,0.79221201]
[1729803623067,0.00509165,68179.0,68178.0,0.90160657]
[1729803623682,0.00509165,68179.0,68178.0,0.63077116]
[1729803623887,6.5e-07,68179.0,68178.0,0.63077116]
[1729803624854,6.5e-07,68179.0,68178.0,0.79218513]
[1729803625466,6.5e-07,68179.0,68178.0,0.79301113]
[1729803627806,6.5e-07,68179.0,68178.0,0.79297002]
[1729803632553,6.5e-07,68179.0,68178.0,0.79883502]
[1729803633736,6.5e-07,68179.0,68178.0,0.84452375]
[1729803633967,0.001652,68192.0,68185.0,0.04759335]
[1729803634190,0.001652,68192.0,68185.0,0.62785616]
[1729803634404,0.001652,68192.0,68185.0,0.78922902]
[1729803635090,0.001652,68192.0,68185.0,0.87670608]
[1729803637522,0.001652,68192.0,68185.0,0.78940926]
[1729803638138,0.001652,68192.0,68185.0,0.87694059]
[1729803638345,0.001652,68192.0,68185.0,0.78940926]
[1729803639828,0.001652,68192.0,68185.0,0.89882088]
[1729803640981,0.001652,68192.0,68185.0,0.78940926]
[1729803643751,0.001652,68192.0,68185.0,0.79720819]
[1729803644544,0.001652,68192.0,68185.0,0.92850214]
[1729803645449,0.001652,68192.0,68185.0,0.79720819]
[1729803653614,0.001652,68192.0,68185.0,0.84294599]
[1729803654898,0.001652,68192.0,68185.0,0.65784599]
[1729803655132,0.110352,68186.0,68185.0,0.48910819]
[1729803655377,0.110352,68186.0,68185.0,0.59885219]
[1729803655590,0.110352,68186.0,68185.0,0.48910819]
[1729803656041,0.001652,68186.0,68185.0,0.70929652]
[1729803656301,0.001652,68186.0,68185.0,0.49110819]
[1729803656535,0.001652,68186.0,68185.0,0.51410819]
[1729803657545,0.001652,68186.0,68185.0,0.51210819]
[1729803659685,0.001652,68186.0,68185.0,0.51410819]
[1729803660143,0.001652,68186.0,68185.0,0.73429652]
[1729803660366,0.001652,68186.0,68185.0,0.51410819]
[1729803660830,0.001652,68186.0,68185.0,0.64577461]
[1729803661050,0.001652,68186.0,68185.0,0.51410819]
[1729803661502,0.001652,68186.0,68185.0,0.64577461]
[1729803661718,0.001652,68186.0,68185.0,0.51410819]
[1729803662566,0.001652,68186.0,68185.0,0.64577461]
[1729803664537,0.001652,68186.0,68185.0,0.51410819]
[1729803670788,0.001652,68186.0,68185.0,0.69740819]
[1729803671001,0.00219901,68210.0,68208.0,0.15920335]
[1729803671250,0.06653373,68222.0,68208.0,0.38855233]
[1729803671251,0.000826,68222.0,68208.0,0.38855233]
[1729803671464,0.000826,68222.0,68208.0,0.48188969]
[1729803671704,0.1051,68214.0,68208.0,0.48188969]
[1729803671915,0.1051,68214.0,68208.0,0.47188969]
[1729803672120,0.1051,68214.0,68208.0,0.5597198]
[1729803672329,0.1051,68214.0,68208.0,0.5697198]
[1729803672546,0.1051,68214.0,68208.0,0.48188969]
[1729803673601,0.1051,68214.0,68208.0,0.54772973]
[1729803674035,0.1051,68214.0,68208.0,0.48188969]
[1729803674469,0.1051,68214.0,68208.0,0.31970716]
[1729803674674,0.1051,68214.0,68208.0,0.54755104]
[1729803674878,0.1051,68214.0,68208.0,0.5475495]
[1729803675660,0.1051,68214.0,68208.0,0.31970716]
[1729803675864,0.1051,68214.0,68208.0,0.32760253]
[1729803677589,0.1051,68214.0,68208.0,0.37149858]
[1729803677821,0.1051,68214.0,68208.0,0.32760253]
[1729803678280,0.1051,68214.0,68208.0,0.37149742]
[1729803678713,0.1051,68214.0,68208.0,0.32760253]
[1729803679402,0.1051,68214.0,68208.0,0.37149742]
[1729803679639,0.1051,68214.0,68208.0,0.32760253]
[1729803679856,0.1051,68214.0,68208.0,0.37149742]
[1729803680507,0.1051,68214.0,68208.0,0.40085742]
[1729803680726,0.1051,68214.0,68208.0,0.32760253]
[1729803680940,0.1051,68214.0,68208.0,0.37149742]
[1729803682472,0.1051,68214.0,68208.0,0.32760253]
[1729803683347,0.1021,68218.0,68208.0,0.54779086]
[1729803683606,0.1021,68218.0,68208.0,0.32960253]
[1729803683858,0.1021,68218.0,68208.0,0.67967246]
[1729803684326,0.1021,68218.0,68208.0,0.67965372]
[1729803684565,0.1021,68218.0,68208.0,0.59192027]
[1729803684985,0.1021,68218.0,68208.0,0.65771195]
[1729803685208,0.1021,68218.0,68208.0,0.59192027]
[1729803685492,0.1021,68218.0,68208.0,1.02284205]
[1729803685725,0.1021,68218.0,68208.0,0.8173081]
[1729803685976,0.1021,68218.0,68208.0,0.82458709]
[1729803686402,0.1021,68218.0,68208.0,0.82658709]
[1729803686849,0.1021,68218.0,68208.0,0.71692027]
[1729803687074,0.1021,68218.0,68208.0,0.80461139]
[1729803687500,0.1021,68218.0,68208.0,0.80459868]
[1729803687718,0.1021,68218.0,68208.0,0.71692027]
[1729803688172,0.1021,68218.0,68208.0,0.80459815]
[1729803690639,0.1021,68218.0,68208.0,0.71692027]
[1729803691281,0.1021,68218.0,68208.0,0.80459815]
[1729803692578,0.1021,68218.0,68208.0,0.71692027]
[1729803694613,0.1021,68218.0,68208.0,0.77878966]
[1729803695658,0.1021,68218.0,68208.0,0.77878493]
[1729803695873,0.1021,68218.0,68208.0,0.71307832]
[1729803696093,0.1021,68218.0,68208.0,0.7787848]
[1729803696309,0.1021,68218.0,68208.0,0.71307832]
[1729803696528,0.1021,68218.0,68208.0,0.6168555]
[1729803698632,0.1021,68218.0,68208.0,0.77852783]
[1729803698796,0.1021,68218.0,68208.0,0.61684601]
[1729803699234,0.1021,68218.0,68208.0,0.55114841]
[1729803699868,0.1021,68218.0,68208.0,0.61684601]
[1729803700248,0.1021,68218.0,68208.0,0.55114841]
[1729803701644,0.1021,68218.0,68208.0,0.61684601]
[1729803701862,0.1021,68218.0,68208.0,0.77854049]
[1729803702091,0.1021,68218.0,68208.0,0.61684601]
[1729803702511,0.1021,68218.0,68208.0,0.77854847]
[1729803704453,0.1021,68218.0,68208.0,0.71285087]
[1729803704679,0.1021,68218.0,68208.0,0.80052875]
[1729803706654,0.1021,68218.0,68208.0,0.71285087]
[1729803708228,0.1021,68218.0,68208.0,0.71292068]
[1729803708673,0.1021,68218.0,68208.0,0.82248073]
[1729803710657,0.1021,68218.0,68208.0,0.71292068]
[1729803716598,0.1021,68218.0,68208.0,0.84439274]
[1729803717440,0.1021,68218.0,68208.0,0.71292068]
[1729803717644,0.1021,68218.0,68208.0,0.75871594]
[1729803717853,0.1021,68218.0,68208.0,0.7590865]
[1729803720302,0.1021,68218.0,68208.0,0.7607365]
[1729803726336,0.1021,68218.0,68208.0,0.76081067]
[1729803728096,0.1021,68218.0,68217.0,0.156591]
[1729803728331,0.1021,68218.0,68217.0,0.46931181]
[1729803732676,0.102925,68218.0,68217.0,0.46931181]
[1729803734949,0.102925,68218.0,68217.0,0.47731492]
[1729803736738,0.102925,68218.0,68217.0,0.47739997]
[1729803737167,0.100425,68218.0,68217.0,0.47739997]
[1729803737847,0.100425,68218.0,68217.0,0.31509792]
[1729803738473,0.08365124,68218.0,68217.0,0.31509792]
[1729803741010,0.08365124,68218.0,68217.0,0.41748575]
[1729803741234,0.000825,68218.0,68217.0,0.41748575]
[1729803743448,0.000825,68218.0,68217.0,0.41948575]
[1729803743663,0.000825,68218.0,68217.0,0.58175235]
[1729803744716,0.000825,68218.0,68217.0,0.58340235]
[1729803744921,0.000825,68218.0,68217.0,0.47901452]
[1729803751447,0.000825,68218.0,68217.0,0.58140235]
[1729803752597,0.000825,68218.0,68217.0,0.58340235]
[1729803754204,0.000825,68218.0,68217.0,1.08572915]
[1729803754422,0.000825,68218.0,68217.0,0.8614774]
[1729803754662,0.000825,68218.0,68217.0,1.0404774]
[1729803755602,0.000826,68222.0,68221.0,0.66965766]
[1729803755818,0.000826,68222.0,68221.0,1.02821529]
[1729803756281,0.000826,68224.0,68221.0,1.02821529]
[1729803756282,0.000478,68226.0,68225.0,0.37896083]
[1729803756501,0.000478,68226.0,68225.0,0.74251846]
[1729803758743,0.000478,68226.0,68225.0,0.69673124]
[1729803760705,0.000478,68226.0,68225.0,0.82824272]
[1729803761652,0.000478,68226.0,68225.0,0.69673124]
[1729803762123,0.000478,68226.0,68225.0,0.69625657]
[1729803763941,0.000478,68226.0,68225.0,1.01494462]
[1729803764159,0.000478,68226.0,68225.0,0.88345657]
[1729803764627,0.000478,68226.0,68225.0,1.01490312]
[1729803764875,0.000478,68226.0,68225.0,1.11729095]
[1729803765090,0.001662,68232.0,68231.0,0.67283566]
[1729803765335,0.001662,68232.0,68231.0,0.88274357]
[1729803766241,0.001662,68232.0,68231.0,0.88860457]
[1729803767618,0.001662,68232.0,68231.0,0.9909924]
[1729803768403,0.001662,68232.0,68231.0,0.88860457]
[1729803768623,0.001662,68232.0,68231.0,0.9909924]
[1729803771764,0.00166,68248.0,68233.0,0.281556]
[1729803771977,0.00166,68248.0,68233.0,0.77878169]
[1729803772187,1e-06,68234.0,68233.0,0.90727231]
[1729803772604,1e-06,68234.0,68233.0,0.78585174]
[1729803772826,1e-06,68234.0,68233.0,0.88823957]
[1729803773053,1e-06,68234.0,68233.0,0.83142606]
[1729803773268,1e-06,68234.0,68233.0,0.93381389]
[1729803774316,1e-06,68238.0,68237.0,0.471448]
[1729803774529,1e-06,68238.0,68237.0,0.78374374]
[1729803775153,1e-06,68238.0,68237.0,0.88613157]
[1729803776009,1e-06,68238.0,68237.0,0.78374374]
[1729803776888,1e-06,68238.0,68237.0,0.7917867]
[1729803781219,0.1046,68260.0,68254.0,0.01]
[1729803781444,0.1046,68265.0,68264.0,0.15149]
[1729803781674,0.1849,68265.0,68264.0,0.14649]
[1729803785109,0.1849,68265.0,68264.0,0.15149]
[1729803785571,0.1849,68265.0,68264.0,0.30199381]
[1729803788208,0.1849,68265.0,68264.0,0.29699381]
[1729803789541,0.185725,68265.0,68264.0,0.29699381]
[1729803793168,0.183725,68265.0,68264.0,0.29699381]
[1729803807825,0.179725,68265.0,68264.0,0.29699381]
[1729803812064,0.179725,68265.0,68264.0,0.29864381]
[1729803813777,0.179725,68265.0,68264.0,0.34245036]
[1729803814627,0.179725,68265.0,68264.0,0.29864381]
[1729803815492,0.179725,68265.0,68264.0,0.52611029]
[1729803816613,0.179725,68265.0,68264.0,0.46040046]
[1729803817639,0.179725,68265.0,68264.0,0.54801356]
[1729803820312,0.179725,68265.0,68264.0,0.55586965]
[1729803821186,0.179725,68265.0,68264.0,0.46825655]
[1729803822340,0.43359983,68265.0,68264.0,0.00165]